Workbook

Sheet tabula (hidden)
C2: "Lielā viktorīna": Saugriežu noskaņās (tiešsaistē / vebinārā) | 2024.gada 21.jūnijs
B3: Grupa | C3: # | D3: Dalībnieks | Raunds | Tēma | Max punkti raundā (bez bonusiem) | E3: 1 | F3: 2 | G3: 3 | H3: 4 | I3: 5 | J3: 6 | K3: 7 | L3: 8 | M3: 9 | N3: 10 | O3: KOPĀ | P3: Laiks kopā | Q3: Pareizās atbildes (max) | R3: Vid.laiks uz 1 pareizo atb.
E4: Pavediens | F4: Divas atbildes: vizuālais | G4: Ekspresis | H4: Burtu mīkla | I4: Ķēde | J4: Jāņu simboli | K4: Risks: Jāņi LAT kino | L4: Kas kopīgs? | M4: Liekais pazūd | N4: Audio
E5: 150 | F5: 180 | G5: 240 | H5: 180 | I5: 175 | J5: 150 | K5: 120 | L5: 180 | M5: 150 | N5: 150 | O5: =SUM(E5:N5) -> 1675
D6: Vidēji p-ti raundā | E6: =ROUND(AVERAGE(E7:E124),1) -> 93 | F6: =ROUND(AVERAGE(F7:F124),1) -> 140.8 | G6: =ROUND(AVERAGE(G7:G124),1) -> 134.8 | H6: =ROUND(AVERAGE(H7:H124),1) -> 83.4 | I6: =ROUND(AVERAGE(I7:I124),1) -> 87.4 | J6: =ROUND(AVERAGE(J7:J124),1) -> 86.4 | K6: =ROUND(AVERAGE(K7:K124),1) -> 30.7 | L6: =ROUND(AVERAGE(L7:L124),1) -> 105.3 | M6: =ROUND(AVERAGE(M7:M124),1) -> 70.2 | N6: =ROUND(AVERAGE(N7:N124),1) -> 62.2 | O6: =ROUND(AVERAGE(O7:O124),1) -> 894.2 | Q6: =6+6+12+6+7+6+6+7+6+6 -> 68
B7: 1 | C7: 1 | D7: Sindija JV | E7: 103 | F7: 151 | G7: 187 | H7: 121 | I7: 136 | J7: 122 | K7: 67 | L7: 144 | M7: 89 | N7: 112 | O7: 1232 | P7: 05 min. 21,161 | Q7: 58 | R7: 05,537 sek.
B8: 3 | C8: 2 | D8: Bunkurs_13 | E8: 122 | F8: 144 | G8: 172 | H8: 127 | I8: 156 | J8: 108 | K8: 74 | L8: 158 | M8: 106 | N8: 65 | O8: 1232 | P8: 07 min. 27,665 | Q8: 61 | R8: 07,339 sek.
B9: 1 | C9: 3 | D9: VMR | E9: 101 | F9: 157 | G9: 174 | H9: 121 | I9: 135 | J9: 125 | K9: 68 | L9: 151 | M9: 92 | N9: 97 | O9: 1221 | P9: 06 min. 48,451 | Q9: 60 | R9: 06,808 sek.
B10: 3 | C10: 4 | D10: BunS | E10: 112 | F10: 154 | G10: 149 | H10: 119 | I10: 92 | J10: 119 | K10: 80 | L10: 150 | M10: 83 | N10: 108 | O10: 1166 | P10: 11 min. 56,735 | Q10: 65 | R10: 11,027 sek.
B11: 1 | C11: 5 | D11: FraRix | E11: 101 | F11: 150 | G11: 167 | H11: 119 | I11: 141 | J11: 104 | K11: 40 | L11: 147 | M11: 87 | N11: 108 | O11: 1164 | P11: 10 min. 20,801 | Q11: 63 | R11: 09,854 sek.
B12: 1 | C12: 6 | D12: Bandītu perēklis | E12: 129 | F12: 168 | G12: 125 | H12: 107 | I12: 118 | J12: 127 | K12: 74 | L12: 126 | M12: 64 | N12: 119 | O12: 1157 | P12: 08 min. 17,947 | Q12: 58 | R12: 08,585 sek.
B13: 2 | C13: 7 | D13: MELDRI | E13: 99 | F13: 160 | G13: 128 | H13: 113 | I13: 121 | J13: 134 | K13: 81 | L13: 118 | M13: 58 | N13: 118 | O13: 1130 | P13: 09 min. 41,449 | Q13: 61 | R13: 09,532 sek.
B14: 3 | C14: 8 | D14: Mazkaloriju biskvīts | E14: 114 | F14: 157 | G14: 141 | H14: 111 | I14: 105 | J14: 136 | K14: 90 | L14: 132 | M14: 51 | N14: 78 | O14: 1115 | P14: 11 min. 08,416 | Q14: 61 | R14: 10,958 sek.
B15: 2 | C15: 9 | D15: Bugatti 21023 | E15: 129 | F15: 164 | G15: 142 | H15: 112 | I15: 124 | J15: 102 | K15: 51 | L15: 141 | M15: 89 | N15: 53 | O15: 1107 | P15: 08 min. 23,053 | Q15: 57 | R15: 08,825 sek.
B16: 2 | C16: 10 | D16: Visu zinām | E16: 104 | F16: 157 | G16: 167 | H16: 99 | I16: 108 | J16: 107 | K16: 65 | L16: 89 | M16: 70 | N16: 94 | O16: 1060 | P16: 10 min. 37,968 | Q16: 59 | R16: 10,813 sek.
B17: 2 | C17: 11 | D17: Jāzepa Banda | E17: 114 | F17: 166 | G17: 145 | H17: 83 | I17: 100 | J17: 86 | K17: 70 | L17: 133 | M17: 84 | N17: 67 | O17: 1048 | P17: 10 min. 25,682 | Q17: 58 | R17: 10,788 sek.
B18: 3 | C18: 12 | D18: Zvirbulis122 | E18: 98 | F18: 124 | G18: 157 | H18: 79 | I18: 116 | J18: 108 | K18: 63 | L18: 133 | M18: 82 | N18: 83 | O18: 1043 | P18: 10 min. 59,089 | Q18: 59 | R18: 11,171 sek.
B19: 1 | C19: 13 | D19: nezinu | E19: 92 | F19: 148 | G19: 131 | H19: 97 | I19: 94 | J19: 105 | K19: 53 | L19: 150 | M19: 81 | N19: 70 | O19: 1021 | P19: 09 min. 49,395 | Q19: 57 | R19: 10,340 sek.
B20: 3 | C20: 14 | D20: kemeru tantas | E20: 119 | F20: 149 | G20: 158 | H20: 78 | I20: 58 | J20: 110 | K20: 44 | L20: 109 | M20: 94 | N20: 86 | O20: 1005 | P20: 07 min. 05,738 | Q20: 52 | R20: 08,187 sek.
B21: 3 | C21: 15 | D21: Vilciņi | E21: 100 | F21: 145 | G21: 181 | H21: 107 | I21: 78 | J21: 92 | K21: 28 | L21: 81 | M21: 98 | N21: 86 | O21: 996 | P21: 10 min. 33,525 | Q21: 58 | R21: 10,923 sek.
B22: 3 | C22: 16 | D22: Sālsvārnas Salas Vasarnieki | E22: 100 | F22: 153 | G22: 140 | H22: 109 | I22: 103 | J22: 116 | K22: 60 | L22: 106 | M22: 78 | N22: 17 | O22: 982 | P22: 05 min. 57,091 | Q22: 48 | R22: 07,439 sek.
B23: 1 | C23: 17 | D23: Te tikai Dieviņš palīdzēs | E23: 117 | F23: 110 | G23: 149 | H23: 108 | I23: 52 | J23: 100 | K23: 77 | L23: 118 | M23: 72 | N23: 61 | O23: 964 | P23: 12 min. 14,212 | Q23: 58 | R23: 12,659 sek.
B24: 1 | C24: 18 | D24: Pundurplanēta | E24: 100 | F24: 128 | G24: 141 | H24: 109 | I24: 87 | J24: 127 | K24: 25 | L24: 125 | M24: 80 | N24: 41 | O24: 963 | P24: 06 min. 53,883 | Q24: 50 | R24: 08,278 sek.
B25: 3 | C25: 19 | D25: Burkānciema egles | E25: 99 | F25: 139 | G25: 155 | H25: 93 | I25: 97 | J25: 88 | K25: 47 | L25: 100 | M25: 61 | N25: 84 | O25: 963 | P25: 09 min. 41,270 | Q25: 54 | R25: 10,764 sek.
C26: 20 | D26: Inspektors JĀNIS | E26: 118 | F26: 151 | G26: 116 | H26: 89 | I26: 85 | J26: 93 | K26: 70 | L26: 105 | M26: 64 | N26: 63 | O26: 954 | P26: 12 min. 05,285 | Q26: 57 | R26: 12,724 sek.
C27: 21 | D27: Alise | E27: 127 | F27: 144 | G27: 176 | H27: 50 | I27: 64 | J27: 93 | K27: 47 | L27: 138 | M27: 50 | N27: 56 | O27: 945 | P27: 06 min. 33,557 | Q27: 49 | R27: 08,032 sek.
C28: 22 | D28: Imantā futbola nav | E28: 121 | F28: 137 | G28: 121 | H28: 126 | I28: 101 | J28: 87 | K28: -21 | L28: 133 | M28: 97 | N28: 40 | O28: 942 | P28: 06 min. 54,014 | Q28: 49 | R28: 08,449 sek.
C29: 23 | D29: Bugatti Gožār | E29: 119 | F29: 153 | G29: 160 | H29: 97 | I29: 58 | J29: 68 | K29: 67 | L29: 103 | M29: 55 | N29: 42 | O29: 922 | P29: 08 min. 44,309 | Q29: 51 | R29: 10,281 sek.
C30: 24 | D30: Pitijs | E30: 91 | F30: 152 | G30: 173 | H30: 75 | I30: 110 | J30: 63 | K30: 9 | L30: 120 | M30: 86 | N30: 42 | O30: 921 | P30: 06 min. 16,552 | Q30: 47 | R30: 08,012 sek.
C31: 25 | D31: Načo | E31: 79 | F31: 163 | G31: 136 | H31: 74 | I31: 59 | J31: 133 | K31: 30 | L31: 117 | M31: 44 | N31: 78 | O31: 913 | P31: 07 min. 41,197 | Q31: 50 | R31: 09,224 sek.
C32: 26 | D32: Eu, es tak šito zinu | E32: 83 | F32: 140 | G32: 99 | H32: 54 | I32: 84 | J32: 88 | K32: 72 | L32: 149 | M32: 82 | N32: 61 | O32: 912 | P32: 09 min. 54,219 | Q32: 53 | R32: 11,212 sek.
C33: 27 | D33: Panzera vergi | E33: 115 | F33: 140 | G33: 118 | H33: 68 | I33: 93 | J33: 66 | K33: 12 | L33: 131 | M33: 99 | N33: 69 | O33: 911 | P33: 06 min. 52,100 | Q33: 47 | R33: 08,768 sek.
C34: 28 | D34: Šautras šašlikos | E34: 113 | F34: 153 | G34: 102 | H34: 103 | I34: 117 | J34: 86 | K34: -37 | L34: 98 | M34: 86 | N34: 77 | O34: 898 | P34: 09 min. 08,883 | Q34: 51 | R34: 10,762 sek.
C35: 29 | D35: Alfisti | E35: 115 | F35: 153 | G35: 138 | H35: 34 | I35: 81 | J35: 109 | K35: 35 | L35: 98 | M35: 50 | N35: 81 | O35: 894 | P35: 08 min. 22,968 | Q35: 50 | R35: 10,059 sek.
C36: 30 | D36: AneO | E36: 87 | F36: 166 | G36: 192 | H36: 106 | I36: 21 | J36: 38 | K36: 8 | L36: 83 | M36: 69 | N36: 81 | O36: 851 | P36: 04 min. 29,193 | Q36: 43 | R36: 06,260 sek.
C37: 31 | D37: Meistariņi | E37: 89 | F37: 151 | G37: 129 | H37: 63 | I37: 63 | J37: 100 | K37: 19 | L37: 88 | M37: 72 | N37: 68 | O37: 842 | P37: 08 min. 45,821 | Q37: 48 | R37: 10,955 sek.
C38: 32 | D38: Saule20 | E38: 91 | F38: 154 | G38: 118 | H38: 87 | I38: 118 | J38: 44 | K38: 22 | L38: 100 | M38: 80 | N38: 19 | O38: 833 | P38: 06 min. 21,826 | Q38: 44 | R38: 08,678 sek.
C39: 33 | D39: K8K | E39: 70 | F39: 162 | G39: 128 | H39: 80 | I39: 114 | J39: 76 | K39: -29 | L39: 69 | M39: 73 | N39: 82 | O39: 825 | P39: 05 min. 47,044 | Q39: 44 | R39: 07,887 sek.
C40: 34 | D40: Samantas tīni | E40: 102 | F40: 101 | G40: 150 | H40: 83 | I40: 57 | J40: 117 | K40: 39 | L40: 47 | M40: 56 | N40: 64 | O40: 816 | P40: 05 min. 46,203 | Q40: 45 | R40: 07,693 sek.
C41: 35 | D41: Kleopatra un Marks Antonijs | E41: 89 | F41: 141 | G41: 143 | H41: 89 | I41: 92 | J41: 101 | K41: -8 | L41: 65 | M41: 78 | N41: 26 | O41: 816 | P41: 09 min. 10,234 | Q41: 48 | R41: 11,463 sek.
C42: 36 | D42: Saulgruzis | E42: 80 | F42: 120 | G42: 121 | H42: 61 | I42: 65 | J42: 134 | K42: -28 | L42: 105 | M42: 101 | N42: 52 | O42: 811 | P42: 06 min. 11,200 | Q42: 44 | R42: 08,436 sek.
C43: 37 | D43: Čujs, ņuhs un poņa bez poņas | E43: 102 | F43: 147 | G43: 105 | H43: 59 | I43: 57 | J43: 77 | K43: 46 | L43: 112 | M43: 32 | N43: 73 | O43: 810 | P43: 11 min. 44,517 | Q43: 51 | R43: 13,814 sek.
C44: 38 | D44: lielmezi.lv | E44: 111 | F44: 148 | G44: 138 | H44: 53 | I44: 101 | J44: 0 | K44: 0 | L44: 82 | M44: 69 | N44: 107 | O44: 809 | P44: 09 min. 24,140 | Q44: 48 | R44: 11,753 sek.
C45: 39 | D45: Kiukucanes | E45: 70 | F45: 137 | G45: 135 | H45: 106 | I45: 50 | J45: 44 | K45: 20 | L45: 103 | M45: 50 | N45: 82 | O45: 797 | P45: 13 min. 28,527 | Q45: 54 | R45: 14,973 sek.
C46: 40 | D46: ROGAS | E46: 60 | F46: 130 | G46: 131 | H46: 92 | I46: 69 | J46: 72 | K46: 11 | L46: 110 | M46: 70 | N46: 51 | O46: 796 | P46: 12 min. 48,725 | Q46: 51 | R46: 15,073 sek.
C47: 41 | D47: Bumbieri un Kubiks | E47: 66 | F47: 150 | G47: 111 | H47: 67 | I47: 65 | J47: 51 | K47: 26 | L47: 100 | M47: 79 | N47: 76 | O47: 791 | P47: 06 min. 04,372 | Q47: 41 | R47: 08,887 sek.
C48: 42 | D48: Šašliks un Marināde | E48: 79 | F48: 145 | G48: 147 | H48: 57 | I48: 139 | J48: 79 | K48: -5 | L48: 51 | M48: 48 | N48: 43 | O48: 783 | P48: 10 min. 07,314 | Q48: 48 | R48: 12,652 sek.
C49: 43 | D49: User | E49: 89 | F49: 112 | G49: 124 | H49: 64 | I49: 38 | J49: 75 | K49: 16 | L49: 114 | M49: 94 | N49: 44 | O49: 770 | P49: 09 min. 22,081 | Q49: 46 | R49: 12,219 sek.
C50: 44 | D50: Stams | E50: 84 | F50: 133 | G50: 88 | H50: 80 | I50: 99 | J50: 78 | K50: 6 | L50: 128 | M50: 38 | N50: 31 | O50: 765 | P50: 09 min. 23,088 | Q50: 46 | R50: 12,241 sek.
C51: 45 | D51: Jāņa Sieriņi | E51: 98 | F51: 97 | G51: 101 | H51: 62 | I51: 86 | J51: 80 | K51: 45 | L51: 96 | M51: 89 | N51: 9 | O51: 763 | P51: 09 min. 19,759 | Q51: 45 | R51: 12,439 sek.
C52: 46 | D52: Bumba | E52: 53 | F52: 129 | G52: 122 | H52: 52 | I52: 63 | J52: 71 | K52: 27 | L52: 110 | M52: 60 | N52: 69 | O52: 756 | P52: 09 min. 29,400 | Q52: 46 | R52: 12,378 sek.
C53: 47 | D53: Pārdaugavas atbildes | E53: 93 | F53: 135 | G53: 186 | H53: 44 | I53: 84 | J53: 21 | K53: -5 | L53: 78 | M53: 66 | N53: 44 | O53: 746 | P53: 05 min. 13,414 | Q53: 40 | R53: 07,835 sek.
C54: 48 | D54: Miksons un Co | E54: 43 | F54: 152 | G54: 129 | H54: 109 | I54: 71 | J54: 48 | K54: 36 | L54: 59 | M54: 69 | N54: 16 | O54: 732 | P54: 06 min. 10,656 | Q54: 40 | R54: 09,266 sek.
C55: 49 | D55: 23.dzīvoklis | E55: 67 | F55: 135 | G55: 87 | H55: 51 | I55: 70 | J55: 58 | K55: 10 | L55: 107 | M55: 74 | N55: 70 | O55: 729 | P55: 08 min. 30,907 | Q55: 42 | R55: 12,164 sek.
C56: 50 | D56: Duduls | E56: 87 | F56: 146 | G56: 92 | H56: 22 | I56: 91 | J56: 73 | K56: 17 | L56: 92 | M56: 41 | N56: 33 | O56: 694 | P56: 06 min. 36,658 | Q56: 39 | R56: 10,171 sek.
C57: 51 | D57: Just80% | E57: 89 | F57: 104 | G57: 79 | H57: 77 | I57: 74 | J57: 86 | K57: 27 | L57: 55 | M57: 47 | N57: 38 | O57: 676 | P57: 12 min. 17,100 | Q57: 47 | R57: 15,683 sek.
C58: 52 | D58: Bunkeristi | E58: 53 | F58: 122 | G58: 118 | H58: 68 | I58: 63 | J58: 84 | K58: -20 | L58: 96 | M58: 39 | N58: 35 | O58: 658 | P58: 06 min. 34,644 | Q58: 37 | R58: 10,666 sek.
C59: 53 | D59: Jāņabērns | E59: 58 | F59: 120 | G59: 142 | H59: 27 | I59: 104 | J59: 61 | K59: 11 | L59: 65 | M59: 26 | N59: 41 | O59: 655 | P59: 10 min. 39,055 | Q59: 43 | R59: 14,862 sek.
C60: 54 | D60: Zizzle | E60: 56 | F60: 129 | G60: 92 | H60: 90 | I60: 72 | J60: 41 | K60: -30 | L60: 77 | M60: 70 | N60: 19 | O60: 616 | P60: 07 min. 39,483 | Q60: 36 | R60: 12,763 sek.
C61: 55 | D61: Smaidas | E61: 38 | F61: 103 | G61: 89 | H61: 76 | I61: 39 | J61: 67 | K61: 27 | L61: 61 | M61: 42 | N61: 40 | O61: 582 | P61: 11 min. 45,211 | Q61: 43 | R61: 16,400 sek.
C62: 56 | D62: Kanelūri | E62: 69 | F62: 105 | G62: 101 | H62: 63 | I62: 59 | J62: 60 | K62: -8 | L62: 40 | M62: 66 | N62: 16 | O62: 571 | P62: 08 min. 59,922 | Q62: 38 | R62: 14,208 sek.

Sheet 1-50
C2: =tabula!C2 -> "Lielā viktorīna": Saugriežu noskaņās (tiešsaistē / vebinārā) | 2024.gada 21.jūnijs
B3: Grupa | C3: =tabula!C3 -> # | D3: =tabula!D3 -> Dalībnieks | Raunds | Tēma | Max punkti raundā (bez bonusiem) | E3: =tabula!E3 -> 1 | F3: =tabula!F3 -> 2 | G3: =tabula!G3 -> 3 | H3: =tabula!H3 -> 4 | I3: =tabula!I3 -> 5 | J3: =tabula!J3 -> 6 | K3: =tabula!K3 -> 7 | L3: =tabula!L3 -> 8 | M3: =tabula!M3 -> 9 | N3: =tabula!N3 -> 10 | O3: =tabula!O3 -> KOPĀ | P3: =tabula!P3 -> Laiks kopā | Q3: =tabula!Q3 -> Pareizās atbildes (max) | R3: =tabula!R3 -> Vid.laiks uz 1 pareizo atb.
E4: =tabula!E4 -> Pavediens | F4: =tabula!F4 -> Divas atbildes: vizuālais | G4: =tabula!G4 -> Ekspresis | H4: =tabula!H4 -> Burtu mīkla | I4: =tabula!I4 -> Ķēde | J4: =tabula!J4 -> Jāņu simboli | K4: =tabula!K4 -> Risks: Jāņi LAT kino | L4: =tabula!L4 -> Kas kopīgs? | M4: =tabula!M4 -> Liekais pazūd | N4: =tabula!N4 -> Audio
E5: =tabula!E5 -> 150 | F5: =tabula!F5 -> 180 | G5: =tabula!G5 -> 240 | H5: =tabula!H5 -> 180 | I5: =tabula!I5 -> 175 | J5: =tabula!J5 -> 150 | K5: =tabula!K5 -> 120 | L5: =tabula!L5 -> 180 | M5: =tabula!M5 -> 150 | N5: =tabula!N5 -> 150 | O5: =tabula!O5 -> 1675
D6: =tabula!D6 -> Vidēji p-ti raundā | E6: =tabula!E6 -> 93 | F6: =tabula!F6 -> 140.8 | G6: =tabula!G6 -> 134.8 | H6: =tabula!H6 -> 83.4 | I6: =tabula!I6 -> 87.4 | J6: =tabula!J6 -> 86.4 | K6: =tabula!K6 -> 30.7 | L6: =tabula!L6 -> 105.3 | M6: =tabula!M6 -> 70.2 | N6: =tabula!N6 -> 62.2 | O6: =tabula!O6 -> 894.2
B7: 1 | C7: =tabula!C7 -> 1 | D7: =tabula!D7 -> Sindija JV | E7: =tabula!E7 -> 103 | F7: =tabula!F7 -> 151 | G7: =tabula!G7 -> 187 | H7: =tabula!H7 -> 121 | I7: =tabula!I7 -> 136 | J7: =tabula!J7 -> 122 | K7: =tabula!K7 -> 67 | L7: =tabula!L7 -> 144 | M7: =tabula!M7 -> 89 | N7: =tabula!N7 -> 112 | O7: =tabula!O7 -> 1232 | P7: =tabula!P7 -> 05 min. 21,161 | Q7: =tabula!Q7 -> 58 | R7: =tabula!R7 -> 05,537 sek.
B8: 3 | C8: =tabula!C8 -> 2 | D8: =tabula!D8 -> Bunkurs_13 | E8: =tabula!E8 -> 122 | F8: =tabula!F8 -> 144 | G8: =tabula!G8 -> 172 | H8: =tabula!H8 -> 127 | I8: =tabula!I8 -> 156 | J8: =tabula!J8 -> 108 | K8: =tabula!K8 -> 74 | L8: =tabula!L8 -> 158 | M8: =tabula!M8 -> 106 | N8: =tabula!N8 -> 65 | O8: =tabula!O8 -> 1232 | P8: =tabula!P8 -> 07 min. 27,665 | Q8: =tabula!Q8 -> 61 | R8: =tabula!R8 -> 07,339 sek.
B9: 1 | C9: =tabula!C9 -> 3 | D9: =tabula!D9 -> VMR | E9: =tabula!E9 -> 101 | F9: =tabula!F9 -> 157 | G9: =tabula!G9 -> 174 | H9: =tabula!H9 -> 121 | I9: =tabula!I9 -> 135 | J9: =tabula!J9 -> 125 | K9: =tabula!K9 -> 68 | L9: =tabula!L9 -> 151 | M9: =tabula!M9 -> 92 | N9: =tabula!N9 -> 97 | O9: =tabula!O9 -> 1221 | P9: =tabula!P9 -> 06 min. 48,451 | Q9: =tabula!Q9 -> 60 | R9: =tabula!R9 -> 06,808 sek.
B10: 3 | C10: =tabula!C10 -> 4 | D10: =tabula!D10 -> BunS | E10: =tabula!E10 -> 112 | F10: =tabula!F10 -> 154 | G10: =tabula!G10 -> 149 | H10: =tabula!H10 -> 119 | I10: =tabula!I10 -> 92 | J10: =tabula!J10 -> 119 | K10: =tabula!K10 -> 80 | L10: =tabula!L10 -> 150 | M10: =tabula!M10 -> 83 | N10: =tabula!N10 -> 108 | O10: =tabula!O10 -> 1166 | P10: =tabula!P10 -> 11 min. 56,735 | Q10: =tabula!Q10 -> 65 | R10: =tabula!R10 -> 11,027 sek.
B11: 1 | C11: =tabula!C11 -> 5 | D11: =tabula!D11 -> FraRix | E11: =tabula!E11 -> 101 | F11: =tabula!F11 -> 150 | G11: =tabula!G11 -> 167 | H11: =tabula!H11 -> 119 | I11: =tabula!I11 -> 141 | J11: =tabula!J11 -> 104 | K11: =tabula!K11 -> 40 | L11: =tabula!L11 -> 147 | M11: =tabula!M11 -> 87 | N11: =tabula!N11 -> 108 | O11: =tabula!O11 -> 1164 | P11: =tabula!P11 -> 10 min. 20,801 | Q11: =tabula!Q11 -> 63 | R11: =tabula!R11 -> 09,854 sek.
B12: 1 | C12: =tabula!C12 -> 6 | D12: =tabula!D12 -> Bandītu perēklis | E12: =tabula!E12 -> 129 | F12: =tabula!F12 -> 168 | G12: =tabula!G12 -> 125 | H12: =tabula!H12 -> 107 | I12: =tabula!I12 -> 118 | J12: =tabula!J12 -> 127 | K12: =tabula!K12 -> 74 | L12: =tabula!L12 -> 126 | M12: =tabula!M12 -> 64 | N12: =tabula!N12 -> 119 | O12: =tabula!O12 -> 1157 | P12: =tabula!P12 -> 08 min. 17,947 | Q12: =tabula!Q12 -> 58 | R12: =tabula!R12 -> 08,585 sek.
B13: 2 | C13: =tabula!C13 -> 7 | D13: =tabula!D13 -> MELDRI | E13: =tabula!E13 -> 99 | F13: =tabula!F13 -> 160 | G13: =tabula!G13 -> 128 | H13: =tabula!H13 -> 113 | I13: =tabula!I13 -> 121 | J13: =tabula!J13 -> 134 | K13: =tabula!K13 -> 81 | L13: =tabula!L13 -> 118 | M13: =tabula!M13 -> 58 | N13: =tabula!N13 -> 118 | O13: =tabula!O13 -> 1130 | P13: =tabula!P13 -> 09 min. 41,449 | Q13: =tabula!Q13 -> 61 | R13: =tabula!R13 -> 09,532 sek.
B14: 3 | C14: =tabula!C14 -> 8 | D14: =tabula!D14 -> Mazkaloriju biskvīts | E14: =tabula!E14 -> 114 | F14: =tabula!F14 -> 157 | G14: =tabula!G14 -> 141 | H14: =tabula!H14 -> 111 | I14: =tabula!I14 -> 105 | J14: =tabula!J14 -> 136 | K14: =tabula!K14 -> 90 | L14: =tabula!L14 -> 132 | M14: =tabula!M14 -> 51 | N14: =tabula!N14 -> 78 | O14: =tabula!O14 -> 1115 | P14: =tabula!P14 -> 11 min. 08,416 | Q14: =tabula!Q14 -> 61 | R14: =tabula!R14 -> 10,958 sek.
B15: 2 | C15: =tabula!C15 -> 9 | D15: =tabula!D15 -> Bugatti 21023 | E15: =tabula!E15 -> 129 | F15: =tabula!F15 -> 164 | G15: =tabula!G15 -> 142 | H15: =tabula!H15 -> 112 | I15: =tabula!I15 -> 124 | J15: =tabula!J15 -> 102 | K15: =tabula!K15 -> 51 | L15: =tabula!L15 -> 141 | M15: =tabula!M15 -> 89 | N15: =tabula!N15 -> 53 | O15: =tabula!O15 -> 1107 | P15: =tabula!P15 -> 08 min. 23,053 | Q15: =tabula!Q15 -> 57 | R15: =tabula!R15 -> 08,825 sek.
B16: 2 | C16: =tabula!C16 -> 10 | D16: =tabula!D16 -> Visu zinām | E16: =tabula!E16 -> 104 | F16: =tabula!F16 -> 157 | G16: =tabula!G16 -> 167 | H16: =tabula!H16 -> 99 | I16: =tabula!I16 -> 108 | J16: =tabula!J16 -> 107 | K16: =tabula!K16 -> 65 | L16: =tabula!L16 -> 89 | M16: =tabula!M16 -> 70 | N16: =tabula!N16 -> 94 | O16: =tabula!O16 -> 1060 | P16: =tabula!P16 -> 10 min. 37,968 | Q16: =tabula!Q16 -> 59 | R16: =tabula!R16 -> 10,813 sek.
B17: 2 | C17: =tabula!C17 -> 11 | D17: =tabula!D17 -> Jāzepa Banda | E17: =tabula!E17 -> 114 | F17: =tabula!F17 -> 166 | G17: =tabula!G17 -> 145 | H17: =tabula!H17 -> 83 | I17: =tabula!I17 -> 100 | J17: =tabula!J17 -> 86 | K17: =tabula!K17 -> 70 | L17: =tabula!L17 -> 133 | M17: =tabula!M17 -> 84 | N17: =tabula!N17 -> 67 | O17: =tabula!O17 -> 1048 | P17: =tabula!P17 -> 10 min. 25,682 | Q17: =tabula!Q17 -> 58 | R17: =tabula!R17 -> 10,788 sek.
B18: 3 | C18: =tabula!C18 -> 12 | D18: =tabula!D18 -> Zvirbulis122 | E18: =tabula!E18 -> 98 | F18: =tabula!F18 -> 124 | G18: =tabula!G18 -> 157 | H18: =tabula!H18 -> 79 | I18: =tabula!I18 -> 116 | J18: =tabula!J18 -> 108 | K18: =tabula!K18 -> 63 | L18: =tabula!L18 -> 133 | M18: =tabula!M18 -> 82 | N18: =tabula!N18 -> 83 | O18: =tabula!O18 -> 1043 | P18: =tabula!P18 -> 10 min. 59,089 | Q18: =tabula!Q18 -> 59 | R18: =tabula!R18 -> 11,171 sek.
B19: 1 | C19: =tabula!C19 -> 13 | D19: =tabula!D19 -> nezinu | E19: =tabula!E19 -> 92 | F19: =tabula!F19 -> 148 | G19: =tabula!G19 -> 131 | H19: =tabula!H19 -> 97 | I19: =tabula!I19 -> 94 | J19: =tabula!J19 -> 105 | K19: =tabula!K19 -> 53 | L19: =tabula!L19 -> 150 | M19: =tabula!M19 -> 81 | N19: =tabula!N19 -> 70 | O19: =tabula!O19 -> 1021 | P19: =tabula!P19 -> 09 min. 49,395 | Q19: =tabula!Q19 -> 57 | R19: =tabula!R19 -> 10,340 sek.
B20: 3 | C20: =tabula!C20 -> 14 | D20: =tabula!D20 -> kemeru tantas | E20: =tabula!E20 -> 119 | F20: =tabula!F20 -> 149 | G20: =tabula!G20 -> 158 | H20: =tabula!H20 -> 78 | I20: =tabula!I20 -> 58 | J20: =tabula!J20 -> 110 | K20: =tabula!K20 -> 44 | L20: =tabula!L20 -> 109 | M20: =tabula!M20 -> 94 | N20: =tabula!N20 -> 86 | O20: =tabula!O20 -> 1005 | P20: =tabula!P20 -> 07 min. 05,738 | Q20: =tabula!Q20 -> 52 | R20: =tabula!R20 -> 08,187 sek.
B21: 3 | C21: =tabula!C21 -> 15 | D21: =tabula!D21 -> Vilciņi | E21: =tabula!E21 -> 100 | F21: =tabula!F21 -> 145 | G21: =tabula!G21 -> 181 | H21: =tabula!H21 -> 107 | I21: =tabula!I21 -> 78 | J21: =tabula!J21 -> 92 | K21: =tabula!K21 -> 28 | L21: =tabula!L21 -> 81 | M21: =tabula!M21 -> 98 | N21: =tabula!N21 -> 86 | O21: =tabula!O21 -> 996 | P21: =tabula!P21 -> 10 min. 33,525 | Q21: =tabula!Q21 -> 58 | R21: =tabula!R21 -> 10,923 sek.
B22: 3 | C22: =tabula!C22 -> 16 | D22: =tabula!D22 -> Sālsvārnas Salas Vasarnieki | E22: =tabula!E22 -> 100 | F22: =tabula!F22 -> 153 | G22: =tabula!G22 -> 140 | H22: =tabula!H22 -> 109 | I22: =tabula!I22 -> 103 | J22: =tabula!J22 -> 116 | K22: =tabula!K22 -> 60 | L22: =tabula!L22 -> 106 | M22: =tabula!M22 -> 78 | N22: =tabula!N22 -> 17 | O22: =tabula!O22 -> 982 | P22: =tabula!P22 -> 05 min. 57,091 | Q22: =tabula!Q22 -> 48 | R22: =tabula!R22 -> 07,439 sek.
B23: 1 | C23: =tabula!C23 -> 17 | D23: =tabula!D23 -> Te tikai Dieviņš palīdzēs | E23: =tabula!E23 -> 117 | F23: =tabula!F23 -> 110 | G23: =tabula!G23 -> 149 | H23: =tabula!H23 -> 108 | I23: =tabula!I23 -> 52 | J23: =tabula!J23 -> 100 | K23: =tabula!K23 -> 77 | L23: =tabula!L23 -> 118 | M23: =tabula!M23 -> 72 | N23: =tabula!N23 -> 61 | O23: =tabula!O23 -> 964 | P23: =tabula!P23 -> 12 min. 14,212 | Q23: =tabula!Q23 -> 58 | R23: =tabula!R23 -> 12,659 sek.
B24: 1 | C24: =tabula!C24 -> 18 | D24: =tabula!D24 -> Pundurplanēta | E24: =tabula!E24 -> 100 | F24: =tabula!F24 -> 128 | G24: =tabula!G24 -> 141 | H24: =tabula!H24 -> 109 | I24: =tabula!I24 -> 87 | J24: =tabula!J24 -> 127 | K24: =tabula!K24 -> 25 | L24: =tabula!L24 -> 125 | M24: =tabula!M24 -> 80 | N24: =tabula!N24 -> 41 | O24: =tabula!O24 -> 963 | P24: =tabula!P24 -> 06 min. 53,883 | Q24: =tabula!Q24 -> 50 | R24: =tabula!R24 -> 08,278 sek.
B25: 3 | C25: =tabula!C25 -> 19 | D25: 2-22 | E25: =tabula!E25 -> 99 | F25: =tabula!F25 -> 139 | G25: =tabula!G25 -> 155 | H25: =tabula!H25 -> 93 | I25: =tabula!I25 -> 97 | J25: =tabula!J25 -> 88 | K25: =tabula!K25 -> 47 | L25: =tabula!L25 -> 100 | M25: =tabula!M25 -> 61 | N25: =tabula!N25 -> 84 | O25: =tabula!O25 -> 963 | P25: =tabula!P25 -> 09 min. 41,270 | Q25: =tabula!Q25 -> 54 | R25: =tabula!R25 -> 10,764 sek.
C26: =tabula!C26 -> 20 | D26: =tabula!D26 -> Inspektors JĀNIS | E26: =tabula!E26 -> 118 | F26: =tabula!F26 -> 151 | G26: =tabula!G26 -> 116 | H26: =tabula!H26 -> 89 | I26: =tabula!I26 -> 85 | J26: =tabula!J26 -> 93 | K26: =tabula!K26 -> 70 | L26: =tabula!L26 -> 105 | M26: =tabula!M26 -> 64 | N26: =tabula!N26 -> 63 | O26: =tabula!O26 -> 954 | P26: =tabula!P26 -> 12 min. 05,285 | Q26: =tabula!Q26 -> 57 | R26: =tabula!R26 -> 12,724 sek.
C27: =tabula!C27 -> 21 | D27: =tabula!D27 -> Alise | E27: =tabula!E27 -> 127 | F27: =tabula!F27 -> 144 | G27: =tabula!G27 -> 176 | H27: =tabula!H27 -> 50 | I27: =tabula!I27 -> 64 | J27: =tabula!J27 -> 93 | K27: =tabula!K27 -> 47 | L27: =tabula!L27 -> 138 | M27: =tabula!M27 -> 50 | N27: =tabula!N27 -> 56 | O27: =tabula!O27 -> 945 | P27: =tabula!P27 -> 06 min. 33,557 | Q27: =tabula!Q27 -> 49 | R27: =tabula!R27 -> 08,032 sek.
C28: =tabula!C28 -> 22 | D28: =tabula!D28 -> Imantā futbola nav | E28: =tabula!E28 -> 121 | F28: =tabula!F28 -> 137 | G28: =tabula!G28 -> 121 | H28: =tabula!H28 -> 126 | I28: =tabula!I28 -> 101 | J28: =tabula!J28 -> 87 | K28: =tabula!K28 -> -21 | L28: =tabula!L28 -> 133 | M28: =tabula!M28 -> 97 | N28: =tabula!N28 -> 40 | O28: =tabula!O28 -> 942 | P28: =tabula!P28 -> 06 min. 54,014 | Q28: =tabula!Q28 -> 49 | R28: =tabula!R28 -> 08,449 sek.
C29: =tabula!C29 -> 23 | D29: =tabula!D29 -> Bugatti Gožār | E29: =tabula!E29 -> 119 | F29: =tabula!F29 -> 153 | G29: =tabula!G29 -> 160 | H29: =tabula!H29 -> 97 | I29: =tabula!I29 -> 58 | J29: =tabula!J29 -> 68 | K29: =tabula!K29 -> 67 | L29: =tabula!L29 -> 103 | M29: =tabula!M29 -> 55 | N29: =tabula!N29 -> 42 | O29: =tabula!O29 -> 922 | P29: =tabula!P29 -> 08 min. 44,309 | Q29: =tabula!Q29 -> 51 | R29: =tabula!R29 -> 10,281 sek.
C30: =tabula!C30 -> 24 | D30: =tabula!D30 -> Pitijs | E30: =tabula!E30 -> 91 | F30: =tabula!F30 -> 152 | G30: =tabula!G30 -> 173 | H30: =tabula!H30 -> 75 | I30: =tabula!I30 -> 110 | J30: =tabula!J30 -> 63 | K30: =tabula!K30 -> 9 | L30: =tabula!L30 -> 120 | M30: =tabula!M30 -> 86 | N30: =tabula!N30 -> 42 | O30: =tabula!O30 -> 921 | P30: =tabula!P30 -> 06 min. 16,552 | Q30: =tabula!Q30 -> 47 | R30: =tabula!R30 -> 08,012 sek.
C31: =tabula!C31 -> 25 | D31: =tabula!D31 -> Načo | E31: =tabula!E31 -> 79 | F31: =tabula!F31 -> 163 | G31: =tabula!G31 -> 136 | H31: =tabula!H31 -> 74 | I31: =tabula!I31 -> 59 | J31: =tabula!J31 -> 133 | K31: =tabula!K31 -> 30 | L31: =tabula!L31 -> 117 | M31: =tabula!M31 -> 44 | N31: =tabula!N31 -> 78 | O31: =tabula!O31 -> 913 | P31: =tabula!P31 -> 07 min. 41,197 | Q31: =tabula!Q31 -> 50 | R31: =tabula!R31 -> 09,224 sek.
C32: =tabula!C32 -> 26 | D32: =tabula!D32 -> Eu, es tak šito zinu | E32: =tabula!E32 -> 83 | F32: =tabula!F32 -> 140 | G32: =tabula!G32 -> 99 | H32: =tabula!H32 -> 54 | I32: =tabula!I32 -> 84 | J32: =tabula!J32 -> 88 | K32: =tabula!K32 -> 72 | L32: =tabula!L32 -> 149 | M32: =tabula!M32 -> 82 | N32: =tabula!N32 -> 61 | O32: =tabula!O32 -> 912 | P32: =tabula!P32 -> 09 min. 54,219 | Q32: =tabula!Q32 -> 53 | R32: =tabula!R32 -> 11,212 sek.
C33: =tabula!C33 -> 27 | D33: =tabula!D33 -> Panzera vergi | E33: =tabula!E33 -> 115 | F33: =tabula!F33 -> 140 | G33: =tabula!G33 -> 118 | H33: =tabula!H33 -> 68 | I33: =tabula!I33 -> 93 | J33: =tabula!J33 -> 66 | K33: =tabula!K33 -> 12 | L33: =tabula!L33 -> 131 | M33: =tabula!M33 -> 99 | N33: =tabula!N33 -> 69 | O33: =tabula!O33 -> 911 | P33: =tabula!P33 -> 06 min. 52,100 | Q33: =tabula!Q33 -> 47 | R33: =tabula!R33 -> 08,768 sek.
C34: =tabula!C34 -> 28 | D34: =tabula!D34 -> Šautras šašlikos | E34: =tabula!E34 -> 113 | F34: =tabula!F34 -> 153 | G34: =tabula!G34 -> 102 | H34: =tabula!H34 -> 103 | I34: =tabula!I34 -> 117 | J34: =tabula!J34 -> 86 | K34: =tabula!K34 -> -37 | L34: =tabula!L34 -> 98 | M34: =tabula!M34 -> 86 | N34: =tabula!N34 -> 77 | O34: =tabula!O34 -> 898 | P34: =tabula!P34 -> 09 min. 08,883 | Q34: =tabula!Q34 -> 51 | R34: =tabula!R34 -> 10,762 sek.
C35: =tabula!C35 -> 29 | D35: =tabula!D35 -> Alfisti | E35: =tabula!E35 -> 115 | F35: =tabula!F35 -> 153 | G35: =tabula!G35 -> 138 | H35: =tabula!H35 -> 34 | I35: =tabula!I35 -> 81 | J35: =tabula!J35 -> 109 | K35: =tabula!K35 -> 35 | L35: =tabula!L35 -> 98 | M35: =tabula!M35 -> 50 | N35: =tabula!N35 -> 81 | O35: =tabula!O35 -> 894 | P35: =tabula!P35 -> 08 min. 22,968 | Q35: =tabula!Q35 -> 50 | R35: =tabula!R35 -> 10,059 sek.
C36: =tabula!C36 -> 30 | D36: =tabula!D36 -> AneO | E36: =tabula!E36 -> 87 | F36: =tabula!F36 -> 166 | G36: =tabula!G36 -> 192 | H36: =tabula!H36 -> 106 | I36: =tabula!I36 -> 21 | J36: =tabula!J36 -> 38 | K36: =tabula!K36 -> 8 | L36: =tabula!L36 -> 83 | M36: =tabula!M36 -> 69 | N36: =tabula!N36 -> 81 | O36: =tabula!O36 -> 851 | P36: =tabula!P36 -> 04 min. 29,193 | Q36: =tabula!Q36 -> 43 | R36: =tabula!R36 -> 06,260 sek.
C37: =tabula!C37 -> 31 | D37: =tabula!D37 -> Meistariņi | E37: =tabula!E37 -> 89 | F37: =tabula!F37 -> 151 | G37: =tabula!G37 -> 129 | H37: =tabula!H37 -> 63 | I37: =tabula!I37 -> 63 | J37: =tabula!J37 -> 100 | K37: =tabula!K37 -> 19 | L37: =tabula!L37 -> 88 | M37: =tabula!M37 -> 72 | N37: =tabula!N37 -> 68 | O37: =tabula!O37 -> 842 | P37: =tabula!P37 -> 08 min. 45,821 | Q37: =tabula!Q37 -> 48 | R37: =tabula!R37 -> 10,955 sek.
C38: =tabula!C38 -> 32 | D38: =tabula!D38 -> Saule20 | E38: =tabula!E38 -> 91 | F38: =tabula!F38 -> 154 | G38: =tabula!G38 -> 118 | H38: =tabula!H38 -> 87 | I38: =tabula!I38 -> 118 | J38: =tabula!J38 -> 44 | K38: =tabula!K38 -> 22 | L38: =tabula!L38 -> 100 | M38: =tabula!M38 -> 80 | N38: =tabula!N38 -> 19 | O38: =tabula!O38 -> 833 | P38: =tabula!P38 -> 06 min. 21,826 | Q38: =tabula!Q38 -> 44 | R38: =tabula!R38 -> 08,678 sek.
C39: =tabula!C39 -> 33 | D39: =tabula!D39 -> K8K | E39: =tabula!E39 -> 70 | F39: =tabula!F39 -> 162 | G39: =tabula!G39 -> 128 | H39: =tabula!H39 -> 80 | I39: =tabula!I39 -> 114 | J39: =tabula!J39 -> 76 | K39: =tabula!K39 -> -29 | L39: =tabula!L39 -> 69 | M39: =tabula!M39 -> 73 | N39: =tabula!N39 -> 82 | O39: =tabula!O39 -> 825 | P39: =tabula!P39 -> 05 min. 47,044 | Q39: =tabula!Q39 -> 44 | R39: =tabula!R39 -> 07,887 sek.
C40: =tabula!C40 -> 34 | D40: =tabula!D40 -> Samantas tīni | E40: =tabula!E40 -> 102 | F40: =tabula!F40 -> 101 | G40: =tabula!G40 -> 150 | H40: =tabula!H40 -> 83 | I40: =tabula!I40 -> 57 | J40: =tabula!J40 -> 117 | K40: =tabula!K40 -> 39 | L40: =tabula!L40 -> 47 | M40: =tabula!M40 -> 56 | N40: =tabula!N40 -> 64 | O40: =tabula!O40 -> 816 | P40: =tabula!P40 -> 05 min. 46,203 | Q40: =tabula!Q40 -> 45 | R40: =tabula!R40 -> 07,693 sek.
C41: =tabula!C41 -> 35 | D41: =tabula!D41 -> Kleopatra un Marks Antonijs | E41: =tabula!E41 -> 89 | F41: =tabula!F41 -> 141 | G41: =tabula!G41 -> 143 | H41: =tabula!H41 -> 89 | I41: =tabula!I41 -> 92 | J41: =tabula!J41 -> 101 | K41: =tabula!K41 -> -8 | L41: =tabula!L41 -> 65 | M41: =tabula!M41 -> 78 | N41: =tabula!N41 -> 26 | O41: =tabula!O41 -> 816 | P41: =tabula!P41 -> 09 min. 10,234 | Q41: =tabula!Q41 -> 48 | R41: =tabula!R41 -> 11,463 sek.
C42: =tabula!C42 -> 36 | D42: =tabula!D42 -> Saulgruzis | E42: =tabula!E42 -> 80 | F42: =tabula!F42 -> 120 | G42: =tabula!G42 -> 121 | H42: =tabula!H42 -> 61 | I42: =tabula!I42 -> 65 | J42: =tabula!J42 -> 134 | K42: =tabula!K42 -> -28 | L42: =tabula!L42 -> 105 | M42: =tabula!M42 -> 101 | N42: =tabula!N42 -> 52 | O42: =tabula!O42 -> 811 | P42: =tabula!P42 -> 06 min. 11,200 | Q42: =tabula!Q42 -> 44 | R42: =tabula!R42 -> 08,436 sek.
C43: =tabula!C43 -> 37 | D43: =tabula!D43 -> Čujs, ņuhs un poņa bez poņas | E43: =tabula!E43 -> 102 | F43: =tabula!F43 -> 147 | G43: =tabula!G43 -> 105 | H43: =tabula!H43 -> 59 | I43: =tabula!I43 -> 57 | J43: =tabula!J43 -> 77 | K43: =tabula!K43 -> 46 | L43: =tabula!L43 -> 112 | M43: =tabula!M43 -> 32 | N43: =tabula!N43 -> 73 | O43: =tabula!O43 -> 810 | P43: =tabula!P43 -> 11 min. 44,517 | Q43: =tabula!Q43 -> 51 | R43: =tabula!R43 -> 13,814 sek.
C44: =tabula!C44 -> 38 | D44: =tabula!D44 -> lielmezi.lv | E44: =tabula!E44 -> 111 | F44: =tabula!F44 -> 148 | G44: =tabula!G44 -> 138 | H44: =tabula!H44 -> 53 | I44: =tabula!I44 -> 101 | J44: =tabula!J44 -> 0 | K44: =tabula!K44 -> 0 | L44: =tabula!L44 -> 82 | M44: =tabula!M44 -> 69 | N44: =tabula!N44 -> 107 | O44: =tabula!O44 -> 809 | P44: =tabula!P44 -> 09 min. 24,140 | Q44: =tabula!Q44 -> 48 | R44: =tabula!R44 -> 11,753 sek.
C45: =tabula!C45 -> 39 | D45: =tabula!D45 -> Kiukucanes | E45: =tabula!E45 -> 70 | F45: =tabula!F45 -> 137 | G45: =tabula!G45 -> 135 | H45: =tabula!H45 -> 106 | I45: =tabula!I45 -> 50 | J45: =tabula!J45 -> 44 | K45: =tabula!K45 -> 20 | L45: =tabula!L45 -> 103 | M45: =tabula!M45 -> 50 | N45: =tabula!N45 -> 82 | O45: =tabula!O45 -> 797 | P45: =tabula!P45 -> 13 min. 28,527 | Q45: =tabula!Q45 -> 54 | R45: =tabula!R45 -> 14,973 sek.
C46: =tabula!C46 -> 40 | D46: =tabula!D46 -> ROGAS | E46: =tabula!E46 -> 60 | F46: =tabula!F46 -> 130 | G46: =tabula!G46 -> 131 | H46: =tabula!H46 -> 92 | I46: =tabula!I46 -> 69 | J46: =tabula!J46 -> 72 | K46: =tabula!K46 -> 11 | L46: =tabula!L46 -> 110 | M46: =tabula!M46 -> 70 | N46: =tabula!N46 -> 51 | O46: =tabula!O46 -> 796 | P46: =tabula!P46 -> 12 min. 48,725 | Q46: =tabula!Q46 -> 51 | R46: =tabula!R46 -> 15,073 sek.
C47: =tabula!C47 -> 41 | D47: =tabula!D47 -> Bumbieri un Kubiks | E47: =tabula!E47 -> 66 | F47: =tabula!F47 -> 150 | G47: =tabula!G47 -> 111 | H47: =tabula!H47 -> 67 | I47: =tabula!I47 -> 65 | J47: =tabula!J47 -> 51 | K47: =tabula!K47 -> 26 | L47: =tabula!L47 -> 100 | M47: =tabula!M47 -> 79 | N47: =tabula!N47 -> 76 | O47: =tabula!O47 -> 791 | P47: =tabula!P47 -> 06 min. 04,372 | Q47: =tabula!Q47 -> 41 | R47: =tabula!R47 -> 08,887 sek.
C48: =tabula!C48 -> 42 | D48: =tabula!D48 -> Šašliks un Marināde | E48: =tabula!E48 -> 79 | F48: =tabula!F48 -> 145 | G48: =tabula!G48 -> 147 | H48: =tabula!H48 -> 57 | I48: =tabula!I48 -> 139 | J48: =tabula!J48 -> 79 | K48: =tabula!K48 -> -5 | L48: =tabula!L48 -> 51 | M48: =tabula!M48 -> 48 | N48: =tabula!N48 -> 43 | O48: =tabula!O48 -> 783 | P48: =tabula!P48 -> 10 min. 07,314 | Q48: =tabula!Q48 -> 48 | R48: =tabula!R48 -> 12,652 sek.
C49: =tabula!C49 -> 43 | D49: =tabula!D49 -> User | E49: =tabula!E49 -> 89 | F49: =tabula!F49 -> 112 | G49: =tabula!G49 -> 124 | H49: =tabula!H49 -> 64 | I49: =tabula!I49 -> 38 | J49: =tabula!J49 -> 75 | K49: =tabula!K49 -> 16 | L49: =tabula!L49 -> 114 | M49: =tabula!M49 -> 94 | N49: =tabula!N49 -> 44 | O49: =tabula!O49 -> 770 | P49: =tabula!P49 -> 09 min. 22,081 | Q49: =tabula!Q49 -> 46 | R49: =tabula!R49 -> 12,219 sek.
C50: =tabula!C50 -> 44 | D50: =tabula!D50 -> Stams | E50: =tabula!E50 -> 84 | F50: =tabula!F50 -> 133 | G50: =tabula!G50 -> 88 | H50: =tabula!H50 -> 80 | I50: =tabula!I50 -> 99 | J50: =tabula!J50 -> 78 | K50: =tabula!K50 -> 6 | L50: =tabula!L50 -> 128 | M50: =tabula!M50 -> 38 | N50: =tabula!N50 -> 31 | O50: =tabula!O50 -> 765 | P50: =tabula!P50 -> 09 min. 23,088 | Q50: =tabula!Q50 -> 46 | R50: =tabula!R50 -> 12,241 sek.
C51: =tabula!C51 -> 45 | D51: =tabula!D51 -> Jāņa Sieriņi | E51: =tabula!E51 -> 98 | F51: =tabula!F51 -> 97 | G51: =tabula!G51 -> 101 | H51: =tabula!H51 -> 62 | I51: =tabula!I51 -> 86 | J51: =tabula!J51 -> 80 | K51: =tabula!K51 -> 45 | L51: =tabula!L51 -> 96 | M51: =tabula!M51 -> 89 | N51: =tabula!N51 -> 9 | O51: =tabula!O51 -> 763 | P51: =tabula!P51 -> 09 min. 19,759 | Q51: =tabula!Q51 -> 45 | R51: =tabula!R51 -> 12,439 sek.
C52: =tabula!C52 -> 46 | D52: =tabula!D52 -> Bumba | E52: =tabula!E52 -> 53 | F52: =tabula!F52 -> 129 | G52: =tabula!G52 -> 122 | H52: =tabula!H52 -> 52 | I52: =tabula!I52 -> 63 | J52: =tabula!J52 -> 71 | K52: =tabula!K52 -> 27 | L52: =tabula!L52 -> 110 | M52: =tabula!M52 -> 60 | N52: =tabula!N52 -> 69 | O52: =tabula!O52 -> 756 | P52: =tabula!P52 -> 09 min. 29,400 | Q52: =tabula!Q52 -> 46 | R52: =tabula!R52 -> 12,378 sek.
C53: =tabula!C53 -> 47 | D53: =tabula!D53 -> Pārdaugavas atbildes | E53: =tabula!E53 -> 93 | F53: =tabula!F53 -> 135 | G53: =tabula!G53 -> 186 | H53: =tabula!H53 -> 44 | I53: =tabula!I53 -> 84 | J53: =tabula!J53 -> 21 | K53: =tabula!K53 -> -5 | L53: =tabula!L53 -> 78 | M53: =tabula!M53 -> 66 | N53: =tabula!N53 -> 44 | O53: =tabula!O53 -> 746 | P53: =tabula!P53 -> 05 min. 13,414 | Q53: =tabula!Q53 -> 40 | R53: =tabula!R53 -> 07,835 sek.
C54: =tabula!C54 -> 48 | D54: =tabula!D54 -> Miksons un Co | E54: =tabula!E54 -> 43 | F54: =tabula!F54 -> 152 | G54: =tabula!G54 -> 129 | H54: =tabula!H54 -> 109 | I54: =tabula!I54 -> 71 | J54: =tabula!J54 -> 48 | K54: =tabula!K54 -> 36 | L54: =tabula!L54 -> 59 | M54: =tabula!M54 -> 69 | N54: =tabula!N54 -> 16 | O54: =tabula!O54 -> 732 | P54: =tabula!P54 -> 06 min. 10,656 | Q54: =tabula!Q54 -> 40 | R54: =tabula!R54 -> 09,266 sek.
C55: =tabula!C55 -> 49 | D55: =tabula!D55 -> 23.dzīvoklis | E55: =tabula!E55 -> 67 | F55: =tabula!F55 -> 135 | G55: =tabula!G55 -> 87 | H55: =tabula!H55 -> 51 | I55: =tabula!I55 -> 70 | J55: =tabula!J55 -> 58 | K55: =tabula!K55 -> 10 | L55: =tabula!L55 -> 107 | M55: =tabula!M55 -> 74 | N55: =tabula!N55 -> 70 | O55: =tabula!O55 -> 729 | P55: =tabula!P55 -> 08 min. 30,907 | Q55: =tabula!Q55 -> 42 | R55: =tabula!R55 -> 12,164 sek.
C56: =tabula!C56 -> 50 | D56: =tabula!D56 -> Duduls | E56: =tabula!E56 -> 87 | F56: =tabula!F56 -> 146 | G56: =tabula!G56 -> 92 | H56: =tabula!H56 -> 22 | I56: =tabula!I56 -> 91 | J56: =tabula!J56 -> 73 | K56: =tabula!K56 -> 17 | L56: =tabula!L56 -> 92 | M56: =tabula!M56 -> 41 | N56: =tabula!N56 -> 33 | O56: =tabula!O56 -> 694 | P56: =tabula!P56 -> 06 min. 36,658 | Q56: =tabula!Q56 -> 39 | R56: =tabula!R56 -> 10,171 sek.
C57: =tabula!C57 -> 51 | D57: =tabula!D57 -> Just80% | E57: =tabula!E57 -> 89 | F57: =tabula!F57 -> 104 | G57: =tabula!G57 -> 79 | H57: =tabula!H57 -> 77 | I57: =tabula!I57 -> 74 | J57: =tabula!J57 -> 86 | K57: =tabula!K57 -> 27 | L57: =tabula!L57 -> 55 | M57: =tabula!M57 -> 47 | N57: =tabula!N57 -> 38 | O57: =tabula!O57 -> 676 | P57: =tabula!P57 -> 12 min. 17,100 | Q57: =tabula!Q57 -> 47 | R57: =tabula!R57 -> 15,683 sek.
C58: =tabula!C58 -> 52 | D58: =tabula!D58 -> Bunkeristi | E58: =tabula!E58 -> 53 | F58: =tabula!F58 -> 122 | G58: =tabula!G58 -> 118 | H58: =tabula!H58 -> 68 | I58: =tabula!I58 -> 63 | J58: =tabula!J58 -> 84 | K58: =tabula!K58 -> -20 | L58: =tabula!L58 -> 96 | M58: =tabula!M58 -> 39 | N58: =tabula!N58 -> 35 | O58: =tabula!O58 -> 658 | P58: =tabula!P58 -> 06 min. 34,644 | Q58: =tabula!Q58 -> 37 | R58: =tabula!R58 -> 10,666 sek.
C59: =tabula!C59 -> 53 | D59: =tabula!D59 -> Jāņabērns | E59: =tabula!E59 -> 58 | F59: =tabula!F59 -> 120 | G59: =tabula!G59 -> 142 | H59: =tabula!H59 -> 27 | I59: =tabula!I59 -> 104 | J59: =tabula!J59 -> 61 | K59: =tabula!K59 -> 11 | L59: =tabula!L59 -> 65 | M59: =tabula!M59 -> 26 | N59: =tabula!N59 -> 41 | O59: =tabula!O59 -> 655 | P59: =tabula!P59 -> 10 min. 39,055 | Q59: =tabula!Q59 -> 43 | R59: =tabula!R59 -> 14,862 sek.
C60: =tabula!C60 -> 54 | D60: =tabula!D60 -> Zizzle | E60: =tabula!E60 -> 56 | F60: =tabula!F60 -> 129 | G60: =tabula!G60 -> 92 | H60: =tabula!H60 -> 90 | I60: =tabula!I60 -> 72 | J60: =tabula!J60 -> 41 | K60: =tabula!K60 -> -30 | L60: =tabula!L60 -> 77 | M60: =tabula!M60 -> 70 | N60: =tabula!N60 -> 19 | O60: =tabula!O60 -> 616 | P60: =tabula!P60 -> 07 min. 39,483 | Q60: =tabula!Q60 -> 36 | R60: =tabula!R60 -> 12,763 sek.
C61: =tabula!C61 -> 55 | D61: =tabula!D61 -> Smaidas | E61: =tabula!E61 -> 38 | F61: =tabula!F61 -> 103 | G61: =tabula!G61 -> 89 | H61: =tabula!H61 -> 76 | I61: =tabula!I61 -> 39 | J61: =tabula!J61 -> 67 | K61: =tabula!K61 -> 27 | L61: =tabula!L61 -> 61 | M61: =tabula!M61 -> 42 | N61: =tabula!N61 -> 40 | O61: =tabula!O61 -> 582 | P61: =tabula!P61 -> 11 min. 45,211 | Q61: =tabula!Q61 -> 43 | R61: =tabula!R61 -> 16,400 sek.
C62: =tabula!C62 -> 56 | D62: =tabula!D62 -> Kanelūri | E62: =tabula!E62 -> 69 | F62: =tabula!F62 -> 105 | G62: =tabula!G62 -> 101 | H62: =tabula!H62 -> 63 | I62: =tabula!I62 -> 59 | J62: =tabula!J62 -> 60 | K62: =tabula!K62 -> -8 | L62: =tabula!L62 -> 40 | M62: =tabula!M62 -> 66 | N62: =tabula!N62 -> 16 | O62: =tabula!O62 -> 571 | P62: =tabula!P62 -> 08 min. 59,922 | Q62: =tabula!Q62 -> 38 | R62: =tabula!R62 -> 14,208 sek.
C64: LIELDRAUGS ATBALSTĪTĀJI

Sheet 51-100 (hidden)
C2: =tabula!C2 -> "Lielā viktorīna": Saugriežu noskaņās (tiešsaistē / vebinārā) | 2024.gada 21.jūnijs
B3: Grupa | C3: =tabula!C3 -> # | D3: =tabula!D3 -> Dalībnieks | Raunds | Tēma | Max punkti raundā (bez bonusiem) | E3: =tabula!E3 -> 1 | F3: =tabula!F3 -> 2 | G3: =tabula!G3 -> 3 | H3: =tabula!H3 -> 4 | I3: =tabula!I3 -> 5 | J3: =tabula!J3 -> 6 | K3: =tabula!K3 -> 7 | L3: =tabula!L3 -> 8 | M3: =tabula!M3 -> 9 | N3: =tabula!N3 -> 10 | O3: =tabula!O3 -> KOPĀ | P3: =tabula!P3 -> Laiks kopā | Q3: =tabula!Q3 -> Pareizās atbildes (max) | R3: =tabula!R3 -> Vid.laiks uz 1 pareizo atb.
E4: =tabula!E4 -> Pavediens | F4: =tabula!F4 -> Divas atbildes: vizuālais | G4: =tabula!G4 -> Ekspresis | H4: =tabula!H4 -> Burtu mīkla | I4: =tabula!I4 -> Ķēde | J4: =tabula!J4 -> Jāņu simboli | K4: =tabula!K4 -> Risks: Jāņi LAT kino | L4: =tabula!L4 -> Kas kopīgs? | M4: =tabula!M4 -> Liekais pazūd | N4: =tabula!N4 -> Audio
E5: =tabula!E5 -> 150 | F5: =tabula!F5 -> 180 | G5: =tabula!G5 -> 240 | H5: =tabula!H5 -> 180 | I5: =tabula!I5 -> 175 | J5: =tabula!J5 -> 150 | K5: =tabula!K5 -> 120 | L5: =tabula!L5 -> 180 | M5: =tabula!M5 -> 150 | N5: =tabula!N5 -> 150 | O5: =tabula!O5 -> 1675
D6: Vidēji p-ti raundā | E6: =tabula!E6 -> 93 | F6: =tabula!F6 -> 140.8 | G6: =tabula!G6 -> 134.8 | H6: =tabula!H6 -> 83.4 | I6: =tabula!I6 -> 87.4 | J6: =tabula!J6 -> 86.4 | K6: =tabula!K6 -> 30.7 | L6: =tabula!L6 -> 105.3 | M6: =tabula!M6 -> 70.2 | N6: =tabula!N6 -> 62.2 | O6: =tabula!O6 -> 894.2
B7: 3 | C7: =tabula!C55 -> 49 | D7: =tabula!D55 -> 23.dzīvoklis | E7: =tabula!E55 -> 67 | F7: =tabula!F55 -> 135 | G7: =tabula!G55 -> 87 | H7: =tabula!H55 -> 51 | I7: =tabula!I55 -> 70 | J7: =tabula!J55 -> 58 | K7: =tabula!K55 -> 10 | L7: =tabula!L55 -> 107 | M7: =tabula!M55 -> 74 | N7: =tabula!N55 -> 70 | O7: =tabula!O55 -> 729 | P7: =tabula!P55 -> 08 min. 30,907 | Q7: =tabula!Q55 -> 42 | R7: =tabula!R55 -> 12,164 sek.
B8: 1 | C8: =tabula!C56 -> 50 | D8: =tabula!D56 -> Duduls | E8: =tabula!E56 -> 87 | F8: =tabula!F56 -> 146 | G8: =tabula!G56 -> 92 | H8: =tabula!H56 -> 22 | I8: =tabula!I56 -> 91 | J8: =tabula!J56 -> 73 | K8: =tabula!K56 -> 17 | L8: =tabula!L56 -> 92 | M8: =tabula!M56 -> 41 | N8: =tabula!N56 -> 33 | O8: =tabula!O56 -> 694 | P8: =tabula!P56 -> 06 min. 36,658 | Q8: =tabula!Q56 -> 39 | R8: =tabula!R56 -> 10,171 sek.
B9: 1 | C9: =tabula!C57 -> 51 | D9: =tabula!D57 -> Just80% | E9: =tabula!E57 -> 89 | F9: =tabula!F57 -> 104 | G9: =tabula!G57 -> 79 | H9: =tabula!H57 -> 77 | I9: =tabula!I57 -> 74 | J9: =tabula!J57 -> 86 | K9: =tabula!K57 -> 27 | L9: =tabula!L57 -> 55 | M9: =tabula!M57 -> 47 | N9: =tabula!N57 -> 38 | O9: =tabula!O57 -> 676 | P9: =tabula!P57 -> 12 min. 17,100 | Q9: =tabula!Q57 -> 47 | R9: =tabula!R57 -> 15,683 sek.
B10: 3 | C10: =tabula!#REF! ->  | D10: =tabula!#REF! ->  | E10: =tabula!#REF! ->  | F10: =tabula!#REF! ->  | G10: =tabula!#REF! ->  | H10: =tabula!#REF! ->  | I10: =tabula!#REF! ->  | J10: =tabula!#REF! ->  | K10: =tabula!#REF! ->  | L10: =tabula!#REF! ->  | M10: =tabula!#REF! ->  | N10: =tabula!#REF! ->  | O10: =tabula!#REF! ->  | P10: =tabula!#REF! ->  | Q10: =tabula!#REF! ->  | R10: =tabula!#REF! -> 
B11: 1 | C11: =tabula!C58 -> 52 | D11: =tabula!D58 -> Bunkeristi | E11: =tabula!E58 -> 53 | F11: =tabula!F58 -> 122 | G11: =tabula!G58 -> 118 | H11: =tabula!H58 -> 68 | I11: =tabula!I58 -> 63 | J11: =tabula!J58 -> 84 | K11: =tabula!K58 -> -20 | L11: =tabula!L58 -> 96 | M11: =tabula!M58 -> 39 | N11: =tabula!N58 -> 35 | O11: =tabula!O58 -> 658 | P11: =tabula!P58 -> 06 min. 34,644 | Q11: =tabula!Q58 -> 37 | R11: =tabula!R58 -> 10,666 sek.
B12: 3 | C12: =tabula!C59 -> 53 | D12: =tabula!D59 -> Jāņabērns | E12: =tabula!E59 -> 58 | F12: =tabula!F59 -> 120 | G12: =tabula!G59 -> 142 | H12: =tabula!H59 -> 27 | I12: =tabula!I59 -> 104 | J12: =tabula!J59 -> 61 | K12: =tabula!K59 -> 11 | L12: =tabula!L59 -> 65 | M12: =tabula!M59 -> 26 | N12: =tabula!N59 -> 41 | O12: =tabula!O59 -> 655 | P12: =tabula!P59 -> 10 min. 39,055 | Q12: =tabula!Q59 -> 43 | R12: =tabula!R59 -> 14,862 sek.
B13: 1 | C13: =tabula!C60 -> 54 | D13: =tabula!D60 -> Zizzle | E13: =tabula!E60 -> 56 | F13: =tabula!F60 -> 129 | G13: =tabula!G60 -> 92 | H13: =tabula!H60 -> 90 | I13: =tabula!I60 -> 72 | J13: =tabula!J60 -> 41 | K13: =tabula!K60 -> -30 | L13: =tabula!L60 -> 77 | M13: =tabula!M60 -> 70 | N13: =tabula!N60 -> 19 | O13: =tabula!O60 -> 616 | P13: =tabula!P60 -> 07 min. 39,483 | Q13: =tabula!Q60 -> 36 | R13: =tabula!R60 -> 12,763 sek.
B14: 1 | C14: =tabula!C61 -> 55 | D14: =tabula!D61 -> Smaidas | E14: =tabula!E61 -> 38 | F14: =tabula!F61 -> 103 | G14: =tabula!G61 -> 89 | H14: =tabula!H61 -> 76 | I14: =tabula!I61 -> 39 | J14: =tabula!J61 -> 67 | K14: =tabula!K61 -> 27 | L14: =tabula!L61 -> 61 | M14: =tabula!M61 -> 42 | N14: =tabula!N61 -> 40 | O14: =tabula!O61 -> 582 | P14: =tabula!P61 -> 11 min. 45,211 | Q14: =tabula!Q61 -> 43 | R14: =tabula!R61 -> 16,400 sek.
B15: 2 | C15: =tabula!C62 -> 56 | D15: =tabula!D62 -> Kanelūri | E15: =tabula!E62 -> 69 | F15: =tabula!F62 -> 105 | G15: =tabula!G62 -> 101 | H15: =tabula!H62 -> 63 | I15: =tabula!I62 -> 59 | J15: =tabula!J62 -> 60 | K15: =tabula!K62 -> -8 | L15: =tabula!L62 -> 40 | M15: =tabula!M62 -> 66 | N15: =tabula!N62 -> 16 | O15: =tabula!O62 -> 571 | P15: =tabula!P62 -> 08 min. 59,922 | Q15: =tabula!Q62 -> 38 | R15: =tabula!R62 -> 14,208 sek.
B16: 3 | C16: =tabula!C63 -> 0 | D16: =tabula!D63 -> 0 | E16: =tabula!E63 -> 0 | F16: =tabula!F63 -> 0 | G16: =tabula!G63 -> 0 | H16: =tabula!H63 -> 0 | I16: =tabula!I63 -> 0 | J16: =tabula!J63 -> 0 | K16: =tabula!K63 -> 0 | L16: =tabula!L63 -> 0 | M16: =tabula!M63 -> 0 | N16: =tabula!N63 -> 0 | O16: =tabula!O63 -> 0 | P16: =tabula!P63 -> 0 | Q16: =tabula!Q63 -> 0 | R16: =tabula!R63 -> 0
B17: 2 | C17: =tabula!C64 -> 0 | D17: =tabula!D64 -> 0 | E17: =tabula!E64 -> 0 | F17: =tabula!F64 -> 0 | G17: =tabula!G64 -> 0 | H17: =tabula!H64 -> 0 | I17: =tabula!I64 -> 0 | J17: =tabula!J64 -> 0 | K17: =tabula!K64 -> 0 | L17: =tabula!L64 -> 0 | M17: =tabula!M64 -> 0 | N17: =tabula!N64 -> 0 | O17: =tabula!O64 -> 0 | P17: =tabula!P64 -> 0 | Q17: =tabula!Q64 -> 0 | R17: =tabula!R64 -> 0
B18: 2 | C18: =tabula!C65 -> 0 | D18: =tabula!D65 -> 0 | E18: =tabula!E65 -> 0 | F18: =tabula!F65 -> 0 | G18: =tabula!G65 -> 0 | H18: =tabula!H65 -> 0 | I18: =tabula!I65 -> 0 | J18: =tabula!J65 -> 0 | K18: =tabula!K65 -> 0 | L18: =tabula!L65 -> 0 | M18: =tabula!M65 -> 0 | N18: =tabula!N65 -> 0 | O18: =tabula!O65 -> 0 | P18: =tabula!P65 -> 0 | Q18: =tabula!Q65 -> 0 | R18: =tabula!R65 -> 0
B19: 2 | C19: =tabula!C66 -> 0 | D19: =tabula!D66 -> 0 | E19: =tabula!E66 -> 0 | F19: =tabula!F66 -> 0 | G19: =tabula!G66 -> 0 | H19: =tabula!H66 -> 0 | I19: =tabula!I66 -> 0 | J19: =tabula!J66 -> 0 | K19: =tabula!K66 -> 0 | L19: =tabula!L66 -> 0 | M19: =tabula!M66 -> 0 | N19: =tabula!N66 -> 0 | O19: =tabula!O66 -> 0 | P19: =tabula!P66 -> 0 | Q19: =tabula!Q66 -> 0 | R19: =tabula!R66 -> 0
B20: 3 | C20: =tabula!C67 -> 0 | D20: =tabula!D67 -> 0 | E20: =tabula!E67 -> 0 | F20: =tabula!F67 -> 0 | G20: =tabula!G67 -> 0 | H20: =tabula!H67 -> 0 | I20: =tabula!I67 -> 0 | J20: =tabula!J67 -> 0 | K20: =tabula!K67 -> 0 | L20: =tabula!L67 -> 0 | M20: =tabula!M67 -> 0 | N20: =tabula!N67 -> 0 | O20: =tabula!O67 -> 0 | P20: =tabula!P67 -> 0 | Q20: =tabula!Q67 -> 0 | R20: =tabula!R67 -> 0
B21: 1 | C21: =tabula!C68 -> 0 | D21: =tabula!D68 -> 0 | E21: =tabula!E68 -> 0 | F21: =tabula!F68 -> 0 | G21: =tabula!G68 -> 0 | H21: =tabula!H68 -> 0 | I21: =tabula!I68 -> 0 | J21: =tabula!J68 -> 0 | K21: =tabula!K68 -> 0 | L21: =tabula!L68 -> 0 | M21: =tabula!M68 -> 0 | N21: =tabula!N68 -> 0 | O21: =tabula!O68 -> 0 | P21: =tabula!P68 -> 0 | Q21: =tabula!Q68 -> 0 | R21: =tabula!R68 -> 0
B22: 3 | C22: =tabula!C69 -> 0 | D22: =tabula!D69 -> 0 | E22: =tabula!E69 -> 0 | F22: =tabula!F69 -> 0 | G22: =tabula!G69 -> 0 | H22: =tabula!H69 -> 0 | I22: =tabula!I69 -> 0 | J22: =tabula!J69 -> 0 | K22: =tabula!K69 -> 0 | L22: =tabula!L69 -> 0 | M22: =tabula!M69 -> 0 | N22: =tabula!N69 -> 0 | O22: =tabula!O69 -> 0 | P22: =tabula!P69 -> 0 | Q22: =tabula!Q69 -> 0 | R22: =tabula!R69 -> 0
B23: 3 | C23: =tabula!C70 -> 0 | D23: =tabula!D70 -> 0 | E23: =tabula!E70 -> 0 | F23: =tabula!F70 -> 0 | G23: =tabula!G70 -> 0 | H23: =tabula!H70 -> 0 | I23: =tabula!I70 -> 0 | J23: =tabula!J70 -> 0 | K23: =tabula!K70 -> 0 | L23: =tabula!L70 -> 0 | M23: =tabula!M70 -> 0 | N23: =tabula!N70 -> 0 | O23: =tabula!O70 -> 0 | P23: =tabula!P70 -> 0 | Q23: =tabula!Q70 -> 0 | R23: =tabula!R70 -> 0
B24: 3 | C24: =tabula!C71 -> 0 | D24: =tabula!D71 -> 0 | E24: =tabula!E71 -> 0 | F24: =tabula!F71 -> 0 | G24: =tabula!G71 -> 0 | H24: =tabula!H71 -> 0 | I24: =tabula!I71 -> 0 | J24: =tabula!J71 -> 0 | K24: =tabula!K71 -> 0 | L24: =tabula!L71 -> 0 | M24: =tabula!M71 -> 0 | N24: =tabula!N71 -> 0 | O24: =tabula!O71 -> 0 | P24: =tabula!P71 -> 0 | Q24: =tabula!Q71 -> 0 | R24: =tabula!R71 -> 0
B25: 1 | C25: =tabula!#REF! ->  | D25: =tabula!#REF! ->  | E25: =tabula!#REF! ->  | F25: =tabula!#REF! ->  | G25: =tabula!#REF! ->  | H25: =tabula!#REF! ->  | I25: =tabula!#REF! ->  | J25: =tabula!#REF! ->  | K25: =tabula!#REF! ->  | L25: =tabula!#REF! ->  | M25: =tabula!#REF! ->  | N25: =tabula!#REF! ->  | O25: =tabula!#REF! ->  | P25: =tabula!#REF! ->  | Q25: =tabula!#REF! ->  | R25: =tabula!#REF! -> 
B26: 1 | C26: =tabula!#REF! ->  | D26: =tabula!#REF! ->  | E26: =tabula!#REF! ->  | F26: =tabula!#REF! ->  | G26: =tabula!#REF! ->  | H26: =tabula!#REF! ->  | I26: =tabula!#REF! ->  | J26: =tabula!#REF! ->  | K26: =tabula!#REF! ->  | L26: =tabula!#REF! ->  | M26: =tabula!#REF! ->  | N26: =tabula!#REF! ->  | O26: =tabula!#REF! ->  | P26: =tabula!#REF! ->  | Q26: =tabula!#REF! ->  | R26: =tabula!#REF! -> 
B27: 3 | C27: =tabula!#REF! ->  | D27: =tabula!#REF! ->  | E27: =tabula!#REF! ->  | F27: =tabula!#REF! ->  | G27: =tabula!#REF! ->  | H27: =tabula!#REF! ->  | I27: =tabula!#REF! ->  | J27: =tabula!#REF! ->  | K27: =tabula!#REF! ->  | L27: =tabula!#REF! ->  | M27: =tabula!#REF! ->  | N27: =tabula!#REF! ->  | O27: =tabula!#REF! ->  | P27: =tabula!#REF! ->  | Q27: =tabula!#REF! ->  | R27: =tabula!#REF! -> 
C28: =tabula!#REF! ->  | D28: =tabula!#REF! ->  | E28: =tabula!#REF! ->  | F28: =tabula!#REF! ->  | G28: =tabula!#REF! ->  | H28: =tabula!#REF! ->  | I28: =tabula!#REF! ->  | J28: =tabula!#REF! ->  | K28: =tabula!#REF! ->  | L28: =tabula!#REF! ->  | M28: =tabula!#REF! ->  | N28: =tabula!#REF! ->  | O28: =tabula!#REF! ->  | P28: =tabula!#REF! ->  | Q28: =tabula!#REF! ->  | R28: =tabula!#REF! -> 
C29: =tabula!#REF! ->  | D29: =tabula!#REF! ->  | E29: =tabula!#REF! ->  | F29: =tabula!#REF! ->  | G29: =tabula!#REF! ->  | H29: =tabula!#REF! ->  | I29: =tabula!#REF! ->  | J29: =tabula!#REF! ->  | K29: =tabula!#REF! ->  | L29: =tabula!#REF! ->  | M29: =tabula!#REF! ->  | N29: =tabula!#REF! ->  | O29: =tabula!#REF! ->  | P29: =tabula!#REF! ->  | Q29: =tabula!#REF! ->  | R29: =tabula!#REF! -> 
C30: =tabula!#REF! ->  | D30: =tabula!#REF! ->  | E30: =tabula!#REF! ->  | F30: =tabula!#REF! ->  | G30: =tabula!#REF! ->  | H30: =tabula!#REF! ->  | I30: =tabula!#REF! ->  | J30: =tabula!#REF! ->  | K30: =tabula!#REF! ->  | L30: =tabula!#REF! ->  | M30: =tabula!#REF! ->  | N30: =tabula!#REF! ->  | O30: =tabula!#REF! ->  | P30: =tabula!#REF! ->  | Q30: =tabula!#REF! ->  | R30: =tabula!#REF! -> 
C31: =tabula!#REF! ->  | D31: =tabula!#REF! ->  | E31: =tabula!#REF! ->  | F31: =tabula!#REF! ->  | G31: =tabula!#REF! ->  | H31: =tabula!#REF! ->  | I31: =tabula!#REF! ->  | J31: =tabula!#REF! ->  | K31: =tabula!#REF! ->  | L31: =tabula!#REF! ->  | M31: =tabula!#REF! ->  | N31: =tabula!#REF! ->  | O31: =tabula!#REF! ->  | P31: =tabula!#REF! ->  | Q31: =tabula!#REF! ->  | R31: =tabula!#REF! -> 
C32: =tabula!#REF! ->  | D32: =tabula!#REF! ->  | E32: =tabula!#REF! ->  | F32: =tabula!#REF! ->  | G32: =tabula!#REF! ->  | H32: =tabula!#REF! ->  | I32: =tabula!#REF! ->  | J32: =tabula!#REF! ->  | K32: =tabula!#REF! ->  | L32: =tabula!#REF! ->  | M32: =tabula!#REF! ->  | N32: =tabula!#REF! ->  | O32: =tabula!#REF! ->  | P32: =tabula!#REF! ->  | Q32: =tabula!#REF! ->  | R32: =tabula!#REF! -> 
C33: =tabula!#REF! ->  | D33: =tabula!#REF! ->  | E33: =tabula!#REF! ->  | F33: =tabula!#REF! ->  | G33: =tabula!#REF! ->  | H33: =tabula!#REF! ->  | I33: =tabula!#REF! ->  | J33: =tabula!#REF! ->  | K33: =tabula!#REF! ->  | L33: =tabula!#REF! ->  | M33: =tabula!#REF! ->  | N33: =tabula!#REF! ->  | O33: =tabula!#REF! ->  | P33: =tabula!#REF! ->  | Q33: =tabula!#REF! ->  | R33: =tabula!#REF! -> 
C34: =tabula!#REF! ->  | D34: =tabula!#REF! ->  | E34: =tabula!#REF! ->  | F34: =tabula!#REF! ->  | G34: =tabula!#REF! ->  | H34: =tabula!#REF! ->  | I34: =tabula!#REF! ->  | J34: =tabula!#REF! ->  | K34: =tabula!#REF! ->  | L34: =tabula!#REF! ->  | M34: =tabula!#REF! ->  | N34: =tabula!#REF! ->  | O34: =tabula!#REF! ->  | P34: =tabula!#REF! ->  | Q34: =tabula!#REF! ->  | R34: =tabula!#REF! -> 
C35: =tabula!#REF! ->  | D35: =tabula!#REF! ->  | E35: =tabula!#REF! ->  | F35: =tabula!#REF! ->  | G35: =tabula!#REF! ->  | H35: =tabula!#REF! ->  | I35: =tabula!#REF! ->  | J35: =tabula!#REF! ->  | K35: =tabula!#REF! ->  | L35: =tabula!#REF! ->  | M35: =tabula!#REF! ->  | N35: =tabula!#REF! ->  | O35: =tabula!#REF! ->  | P35: =tabula!#REF! ->  | Q35: =tabula!#REF! ->  | R35: =tabula!#REF! -> 
C36: =tabula!#REF! ->  | D36: =tabula!#REF! ->  | E36: =tabula!#REF! ->  | F36: =tabula!#REF! ->  | G36: =tabula!#REF! ->  | H36: =tabula!#REF! ->  | I36: =tabula!#REF! ->  | J36: =tabula!#REF! ->  | K36: =tabula!#REF! ->  | L36: =tabula!#REF! ->  | M36: =tabula!#REF! ->  | N36: =tabula!#REF! ->  | O36: =tabula!#REF! ->  | P36: =tabula!#REF! ->  | Q36: =tabula!#REF! ->  | R36: =tabula!#REF! -> 
C37: =tabula!#REF! ->  | D37: =tabula!#REF! ->  | E37: =tabula!#REF! ->  | F37: =tabula!#REF! ->  | G37: =tabula!#REF! ->  | H37: =tabula!#REF! ->  | I37: =tabula!#REF! ->  | J37: =tabula!#REF! ->  | K37: =tabula!#REF! ->  | L37: =tabula!#REF! ->  | M37: =tabula!#REF! ->  | N37: =tabula!#REF! ->  | O37: =tabula!#REF! ->  | P37: =tabula!#REF! ->  | Q37: =tabula!#REF! ->  | R37: =tabula!#REF! -> 
C38: =tabula!#REF! ->  | D38: =tabula!#REF! ->  | E38: =tabula!#REF! ->  | F38: =tabula!#REF! ->  | G38: =tabula!#REF! ->  | H38: =tabula!#REF! ->  | I38: =tabula!#REF! ->  | J38: =tabula!#REF! ->  | K38: =tabula!#REF! ->  | L38: =tabula!#REF! ->  | M38: =tabula!#REF! ->  | N38: =tabula!#REF! ->  | O38: =tabula!#REF! ->  | P38: =tabula!#REF! ->  | Q38: =tabula!#REF! ->  | R38: =tabula!#REF! -> 
C39: =tabula!#REF! ->  | D39: =tabula!#REF! ->  | E39: =tabula!#REF! ->  | F39: =tabula!#REF! ->  | G39: =tabula!#REF! ->  | H39: =tabula!#REF! ->  | I39: =tabula!#REF! ->  | J39: =tabula!#REF! ->  | K39: =tabula!#REF! ->  | L39: =tabula!#REF! ->  | M39: =tabula!#REF! ->  | N39: =tabula!#REF! ->  | O39: =tabula!#REF! ->  | P39: =tabula!#REF! ->  | Q39: =tabula!#REF! ->  | R39: =tabula!#REF! -> 
C40: =tabula!#REF! ->  | D40: =tabula!#REF! ->  | E40: =tabula!#REF! ->  | F40: =tabula!#REF! ->  | G40: =tabula!#REF! ->  | H40: =tabula!#REF! ->  | I40: =tabula!#REF! ->  | J40: =tabula!#REF! ->  | K40: =tabula!#REF! ->  | L40: =tabula!#REF! ->  | M40: =tabula!#REF! ->  | N40: =tabula!#REF! ->  | O40: =tabula!#REF! ->  | P40: =tabula!#REF! ->  | Q40: =tabula!#REF! ->  | R40: =tabula!#REF! -> 
C41: =tabula!#REF! ->  | D41: =tabula!#REF! ->  | E41: =tabula!#REF! ->  | F41: =tabula!#REF! ->  | G41: =tabula!#REF! ->  | H41: =tabula!#REF! ->  | I41: =tabula!#REF! ->  | J41: =tabula!#REF! ->  | K41: =tabula!#REF! ->  | L41: =tabula!#REF! ->  | M41: =tabula!#REF! ->  | N41: =tabula!#REF! ->  | O41: =tabula!#REF! ->  | P41: =tabula!#REF! ->  | Q41: =tabula!#REF! ->  | R41: =tabula!#REF! -> 
C42: =tabula!#REF! ->  | D42: =tabula!#REF! ->  | E42: =tabula!#REF! ->  | F42: =tabula!#REF! ->  | G42: =tabula!#REF! ->  | H42: =tabula!#REF! ->  | I42: =tabula!#REF! ->  | J42: =tabula!#REF! ->  | K42: =tabula!#REF! ->  | L42: =tabula!#REF! ->  | M42: =tabula!#REF! ->  | N42: =tabula!#REF! ->  | O42: =tabula!#REF! ->  | P42: =tabula!#REF! ->  | Q42: =tabula!#REF! ->  | R42: =tabula!#REF! -> 
C43: =tabula!#REF! ->  | D43: =tabula!#REF! ->  | E43: =tabula!#REF! ->  | F43: =tabula!#REF! ->  | G43: =tabula!#REF! ->  | H43: =tabula!#REF! ->  | I43: =tabula!#REF! ->  | J43: =tabula!#REF! ->  | K43: =tabula!#REF! ->  | L43: =tabula!#REF! ->  | M43: =tabula!#REF! ->  | N43: =tabula!#REF! ->  | O43: =tabula!#REF! ->  | P43: =tabula!#REF! ->  | Q43: =tabula!#REF! ->  | R43: =tabula!#REF! -> 
C44: =tabula!#REF! ->  | D44: =tabula!#REF! ->  | E44: =tabula!#REF! ->  | F44: =tabula!#REF! ->  | G44: =tabula!#REF! ->  | H44: =tabula!#REF! ->  | I44: =tabula!#REF! ->  | J44: =tabula!#REF! ->  | K44: =tabula!#REF! ->  | L44: =tabula!#REF! ->  | M44: =tabula!#REF! ->  | N44: =tabula!#REF! ->  | O44: =tabula!#REF! ->  | P44: =tabula!#REF! ->  | Q44: =tabula!#REF! ->  | R44: =tabula!#REF! -> 
C45: =tabula!#REF! ->  | D45: =tabula!#REF! ->  | E45: =tabula!#REF! ->  | F45: =tabula!#REF! ->  | G45: =tabula!#REF! ->  | H45: =tabula!#REF! ->  | I45: =tabula!#REF! ->  | J45: =tabula!#REF! ->  | K45: =tabula!#REF! ->  | L45: =tabula!#REF! ->  | M45: =tabula!#REF! ->  | N45: =tabula!#REF! ->  | O45: =tabula!#REF! ->  | P45: =tabula!#REF! ->  | Q45: =tabula!#REF! ->  | R45: =tabula!#REF! -> 
C46: =tabula!#REF! ->  | D46: =tabula!#REF! ->  | E46: =tabula!#REF! ->  | F46: =tabula!#REF! ->  | G46: =tabula!#REF! ->  | H46: =tabula!#REF! ->  | I46: =tabula!#REF! ->  | J46: =tabula!#REF! ->  | K46: =tabula!#REF! ->  | L46: =tabula!#REF! ->  | M46: =tabula!#REF! ->  | N46: =tabula!#REF! ->  | O46: =tabula!#REF! ->  | P46: =tabula!#REF! ->  | Q46: =tabula!#REF! ->  | R46: =tabula!#REF! -> 
C47: =tabula!#REF! ->  | D47: =tabula!#REF! ->  | E47: =tabula!#REF! ->  | F47: =tabula!#REF! ->  | G47: =tabula!#REF! ->  | H47: =tabula!#REF! ->  | I47: =tabula!#REF! ->  | J47: =tabula!#REF! ->  | K47: =tabula!#REF! ->  | L47: =tabula!#REF! ->  | M47: =tabula!#REF! ->  | N47: =tabula!#REF! ->  | O47: =tabula!#REF! ->  | P47: =tabula!#REF! ->  | Q47: =tabula!#REF! ->  | R47: =tabula!#REF! -> 
C48: =tabula!#REF! ->  | D48: =tabula!#REF! ->  | E48: =tabula!#REF! ->  | F48: =tabula!#REF! ->  | G48: =tabula!#REF! ->  | H48: =tabula!#REF! ->  | I48: =tabula!#REF! ->  | J48: =tabula!#REF! ->  | K48: =tabula!#REF! ->  | L48: =tabula!#REF! ->  | M48: =tabula!#REF! ->  | N48: =tabula!#REF! ->  | O48: =tabula!#REF! ->  | P48: =tabula!#REF! ->  | Q48: =tabula!#REF! ->  | R48: =tabula!#REF! -> 
C49: =tabula!#REF! ->  | D49: =tabula!#REF! ->  | E49: =tabula!#REF! ->  | F49: =tabula!#REF! ->  | G49: =tabula!#REF! ->  | H49: =tabula!#REF! ->  | I49: =tabula!#REF! ->  | J49: =tabula!#REF! ->  | K49: =tabula!#REF! ->  | L49: =tabula!#REF! ->  | M49: =tabula!#REF! ->  | N49: =tabula!#REF! ->  | O49: =tabula!#REF! ->  | P49: =tabula!#REF! ->  | Q49: =tabula!#REF! ->  | R49: =tabula!#REF! -> 
C50: =tabula!#REF! ->  | D50: =tabula!#REF! ->  | E50: =tabula!#REF! ->  | F50: =tabula!#REF! ->  | G50: =tabula!#REF! ->  | H50: =tabula!#REF! ->  | I50: =tabula!#REF! ->  | J50: =tabula!#REF! ->  | K50: =tabula!#REF! ->  | L50: =tabula!#REF! ->  | M50: =tabula!#REF! ->  | N50: =tabula!#REF! ->  | O50: =tabula!#REF! ->  | P50: =tabula!#REF! ->  | Q50: =tabula!#REF! ->  | R50: =tabula!#REF! -> 
C51: =tabula!#REF! ->  | D51: =tabula!#REF! ->  | E51: =tabula!#REF! ->  | F51: =tabula!#REF! ->  | G51: =tabula!#REF! ->  | H51: =tabula!#REF! ->  | I51: =tabula!#REF! ->  | J51: =tabula!#REF! ->  | K51: =tabula!#REF! ->  | L51: =tabula!#REF! ->  | M51: =tabula!#REF! ->  | N51: =tabula!#REF! ->  | O51: =tabula!#REF! ->  | P51: =tabula!#REF! ->  | Q51: =tabula!#REF! ->  | R51: =tabula!#REF! -> 
C53: LIELDRAUGS ATBALSTĪTĀJI

Sheet raundi
B2: =CONCATENATE(tabula!C2," --> Raundu uzvarētāji") -> "Lielā viktorīna": Saugriežu noskaņās (tiešsaistē / vebinārā) | 2024.gada 21.jūnijs --> Raundu uzvarētāji
B3: # | C3: Raunda nosaukums | D3: Dalībnieks | E3: Rezultāts | F3: AVG | G3: MAX | H3: % no max
B4: 1 | C4: =TRANSPOSE(tabula!E4:N4) -> Pavediens | D4: Bugatti 21023 | E4: 129 | F4: =TRANSPOSE(tabula!E6:N6) -> 93 | G4: =TRANSPOSE(tabula!E5:N5) -> 150 | H4: =E4/G4 -> 0.86
B5: 2 | C5: Divas atbildes: vizuālais | D5: Bandītu perēklis | E5: 168 | F5: 140.8 | G5: 180 | H5: =E5/G5 -> 0.9333333333
B6: 3 | C6: Ekspresis | D6: AneO | E6: 192 | F6: 134.8 | G6: 240 | H6: 0.8
B7: 4 | C7: Burtu mīkla | D7: Bunkurs_13 | E7: 127 | F7: 83.4 | G7: 180 | H7: 0.7055555556
B8: 5 | C8: Ķēde | D8: Bunkurs_13 | E8: 156 | F8: 87.4 | G8: 175 | H8: 0.8914285714
B9: 6 | C9: Jāņu simboli | D9: Mazkaloriju biskvīts | E9: 136 | F9: 86.4 | G9: 150 | H9: 0.9066666667
B10: 7 | C10: Risks: Jāņi LAT kino | D10: Mazkaloriju biskvīts | E10: 90 | F10: 30.7 | G10: 120 | H10: 0.75
B11: 8 | C11: Kas kopīgs? | D11: Bunkurs_13 | E11: 158 | F11: 105.3 | G11: 180 | H11: 0.8777777778
B12: 9 | C12: Liekais pazūd | D12: Bunkurs_13 | E12: 106 | F12: 70.2 | G12: 150 | H12: 0.7066666667
B13: 10 | C13: Audio | D13: Bandītu perēklis | E13: 119 | F13: 62.2 | G13: 150 | H13: 0.7933333333
B14: - | C14: Uzvarētājs | E14: =tabula!O7 -> 1232 | F14: =tabula!O6 -> 894.2 | G14: =SUM(G4:G13) -> 1675 | H14: =E14/G14 -> 0.7355223881
C15: =tabula!D7 -> Sindija JV
B17: LIELDRAUGS ATBALSTĪTĀJI
